bitfinex/quotes_SOLUSD_20251106
["timestamp","ask_amount","ask_price","bid_price","bid_amount"]
[1762439745875,22.74013998,157.87,157.76,7.63647494]
[1762439746074,0.57,157.86,157.74,7.63647494]
[1762439746382,20.592,157.84,157.72,0.67]
[1762439746574,7.63647494,157.8,157.72,0.67]
[1762439746775,7.63647494,157.78,157.72,0.67]
[1762439746965,7.63647494,157.76,157.72,0.67]
[1762439747598,7.63647494,157.77,157.72,0.67]
[1762439747798,13.97516606,157.77,157.72,0.67]
[1762439747980,0.57,157.82,157.72,0.67]
[1762439748177,6.90635655,157.82,157.72,14.64673588]
[1762439748390,6.33630326,157.83,157.74,7.63647494]
[1762439748579,27.4975748,157.84,157.74,7.63647494]
[1762439748769,6.9055748,157.84,157.75,0.67]
[1762439749101,7.63647494,157.79,157.75,0.67]
[1762439749274,7.63647494,157.8,157.75,0.67]
[1762439749793,7.63647494,157.83,157.77,7.63647494]
[1762439749966,13.97253322,157.83,157.77,8.30647494]
[1762439750169,7.63647494,157.83,157.77,8.30647494]
[1762439750364,16.12154886,157.91,157.78,8.30647494]
[1762439750568,20.592,157.87,157.79,0.67]
[1762439750809,7.98,157.9,157.81,7.63647494]
[1762439750977,7.63647494,157.86,157.79,0.67]
[1762439751176,26.92440067,157.92,157.82,7.63647494]
[1762439751403,6.90240067,157.92,157.79,0.67]
[1762439751705,13.97083929,157.87,157.81,7.63647494]
[1762439751878,7.63647494,157.87,157.81,7.63647494]
[1762439752192,22.16592779,157.9,157.81,8.30647494]
[1762439752395,7.63647494,157.88,157.82,8.35647494]
[1762439752572,7.63647494,157.87,157.82,0.72]
[1762439752893,7.63647494,157.87,157.81,7.63647494]
[1762439753099,7.63647494,157.88,157.83,0.72]
[1762439753285,7.63647494,157.89,157.83,8.35647494]
[1762439753488,22.1620183,157.93,157.79,30.38082769]
[1762439753694,7.63647494,157.82,157.78,0.72]
[1762439753878,6.33280085,157.91,157.81,7.63647494]
[1762439754080,13.96927579,157.91,157.85,7.63647494]
[1762439754286,7.63647494,157.88,157.82,0.72]
[1762439754491,20.592,157.93,157.82,8.35647494]
[1762439754694,15.8277936,157.95,157.86,7.63647494]
[1762439754695,7.63647494,157.92,157.86,7.63647494]
[1762439754879,7.63647494,157.91,157.85,7.63647494]
[1762439755081,7.63647494,157.91,157.84,8.35647494]
[1762439755275,7.63647494,157.87,157.81,0.72]
[1762439755585,7.63647494,157.85,157.81,0.72]
[1762439755792,21.162,157.9,157.81,0.72]
[1762439755990,7.63647494,157.86,157.81,0.72]
[1762439756174,7.63647494,157.82,157.76,0.72]
[1762439756374,7.63647494,157.78,157.72,7.63647494]
[1762439756671,0.57,157.85,157.74,7.63647494]
[1762439756672,7.63647494,157.8,157.74,7.63647494]
[1762439756877,20.592,157.86,157.76,7.63647494]
[1762439757079,20.592,157.88,157.78,7.63647494]
[1762439757294,20.592,157.88,157.76,9.78882769]
[1762439757593,7.63647494,157.81,157.75,0.72]
[1762439757797,0.57,157.87,157.78,7.63647494]
[1762439757798,6.33512828,157.85,157.78,7.63647494]
[1762439758011,7.63647494,157.87,157.81,7.63647494]
[1762439758185,7.63647494,157.87,157.75,7.63647494]
[1762439758186,7.63647494,157.82,157.75,7.63647494]
[1762439758384,0.57,157.86,157.75,0.72]
[1762439758385,7.63647494,157.79,157.75,0.72]
[1762439758894,7.63647494,157.76,157.71,0.72]
[1762439759090,0.57,157.79,157.71,0.72]
[1762439759287,7.63647494,157.74,157.71,0.72]
[1762439759603,7.63647494,157.72,157.67,8.72]
[1762439759805,6.34155621,157.69,157.64,17.12000001]
[1762439760099,1.99999999,157.95,157.66,1.99999999]
[1762439760301,1.99999999,157.94,157.71,20.592]
[1762439760501,0.57,157.94,157.79,6.70158709]
[1762439760685,0.57,157.93,157.8,0.72]
[1762439760877,0.57,157.93,157.83,6.70158709]
[1762439761074,6.70158709,157.92,157.83,0.6335931]
[1762439761306,0.57,157.95,157.84,8.84]
[1762439761599,20.592,157.93,157.86,6.70158709]
[1762439761804,6.33151829,157.94,157.84,8.12]
[1762439761988,6.33071663,157.96,157.88,6.70158709]
[1762439762187,0.2,157.97,157.93,6.70158709]
[1762439762404,0.2,157.97,157.94,4.38289178]
[1762439762722,0.2,157.97,157.96,4.38289178]
[1762439762887,0.2,157.97,157.95,16.88578356]
[1762439763081,0.2,157.97,157.96,0.72]
[1762439763481,0.2,158.04,157.96,0.72]
[1762439763482,0.2,158.04,157.97,9.78882769]
[1762439763716,0.2,158.04,157.99,9.78882769]
[1762439763893,0.2,158.04,158.03,4.38289178]
[1762439764285,0.86,158.04,157.95,0.72]
[1762439764482,43.59829207,158.04,157.97,4.38289178]
[1762439764876,0.66,158.03,157.97,4.38289178]
[1762439765188,0.66,158.03,157.95,4.38289178]
[1762439765395,20.592,158.0,157.9,0.72]
[1762439765597,4.38289178,157.99,157.89,4.38289178]
[1762439765894,4.38289178,157.94,157.87,12.50289178]
[1762439766092,22.15750822,157.96,157.88,4.38289178]
[1762439766296,4.38289178,157.91,157.85,8.12]
[1762439766539,6.69534098,157.92,157.85,14.81534098]
[1762439766820,6.69534098,157.92,157.83,0.72]
[1762439766985,0.66,157.92,157.83,8.84]
[1762439767327,19.06,157.86,157.73,7.41534098]
[1762439767481,6.69534098,157.84,157.76,6.69534098]
[1762439767684,6.69534098,157.84,157.74,0.72]
[1762439767685,6.69534098,157.84,157.77,6.69534098]
[1762439767882,6.33593106,157.83,157.79,6.69534098]
[1762439768089,6.33531033,157.85,157.8,6.69534098]
[1762439768786,6.33531033,157.85,157.8,7.41534098]
[1762439769082,6.33437027,157.87,157.82,6.69534098]
[1762439769303,6.69534098,157.88,157.82,6.69534098]
[1762439769512,6.69534098,157.88,157.81,0.72]
[1762439769513,6.69534098,157.9,157.85,6.69534098]
[1762439769803,13.02834202,157.91,157.83,0.72]
[1762439769980,6.69534098,157.89,157.8,10.50882769]
[1762439770181,6.69534098,157.89,157.83,6.69534098]
[1762439770420,6.69534098,157.86,157.8,8.18]
[1762439770641,6.69534098,157.86,157.81,6.69534098]
[1762439770844,6.69534098,157.86,157.8,8.9]
[1762439770845,6.69534098,157.86,157.8,7.41534098]
[1762439771048,28.86014494,157.91,157.85,6.69534098]
[1762439771254,0.66,157.97,157.89,6.69534098]
[1762439771560,6.69534098,157.98,157.9,0.63331222]
[1762439771853,6.33031588,157.97,157.93,6.69534098]
[1762439772046,6.3299306,157.98,157.94,6.69534098]
[1762439772232,6.32922277,158.0,157.95,6.69534098]
[1762439772551,6.69534098,157.99,157.91,0.72]
[1762439772758,26.91991242,158.03,157.95,6.69534098]
[1762439772924,0.2,158.04,157.98,6.69534098]
[1762439773123,0.2,158.04,157.98,0.72]
[1762439773324,6.69534098,158.0,157.96,8.16]
[1762439773532,6.69534098,157.98,157.93,6.69534098]
[1762439773746,6.33031588,157.97,157.92,8.16]
[1762439773954,6.33031588,157.97,157.91,0.72]
[1762439773955,6.69534098,157.99,157.93,6.69534098]
[1762439774123,13.02504335,157.99,157.93,6.69534098]
[1762439774324,13.02504335,157.99,157.92,8.88]
[1762439774544,13.02504335,157.99,157.94,6.69534098]
[1762439774758,0.2,158.04,157.98,6.69534098]
[1762439774962,0.2,158.04,158.0,6.69534098]
[1762439775251,0.2,158.04,158.01,6.69534098]
[1762439775549,0.2,158.05,158.01,6.69534098]
[1762439775550,0.2,158.05,158.04,9.78882769]
[1762439775765,0.66,158.17,158.04,16.48416867]
[1762439775932,6.69534098,158.15,158.1,6.69534098]
[1762439776134,0.66,158.17,158.1,6.69534098]
[1762439776367,0.66,158.17,158.11,6.69534098]
[1762439776529,7.35534098,158.17,158.08,9.51259109]
[1762439776861,7.35534098,158.17,158.12,6.69534098]
[1762439777032,0.66,158.17,158.09,0.72]
[1762439777236,6.69534098,158.15,158.09,6.69534098]
[1762439777856,7.35534098,158.16,158.1,6.69534098]
[1762439778072,13.01810485,158.16,158.11,6.69534098]
[1762439778272,0.65136999,158.24,158.09,0.72]
[1762439778475,55.30511981,158.29,158.09,0.72]
[1762439778476,0.66,158.27,158.2,6.69534098]
[1762439778653,0.66,158.27,158.19,8.16]
[1762439778842,0.66,158.27,158.15,20.592]
[1762439778843,7.35534098,158.27,158.22,6.69534098]
[1762439779042,0.66,158.27,158.2,8.16]
[1762439779255,20.592,158.32,158.16,1.35227111]
[1762439779256,6.69534098,158.24,158.17,9.78882769]
[1762439779456,6.69534098,158.23,158.17,14.85534098]
[1762439779658,1.99999999,158.33,158.17,14.85534098]
[1762439779659,0.66,158.25,158.17,14.85534098]
[1762439779983,6.69534098,158.23,158.17,14.85534098]
[1762439780274,6.69534098,158.23,158.15,8.16]
[1762439780275,6.69534098,158.19,158.15,8.16]
[1762439780452,0.66,158.22,158.16,6.69534098]
[1762439780656,43.36053019,158.25,158.16,7.41534098]
[1762439780873,43.36053019,158.25,158.1,0.63251106]
[1762439780874,6.69534098,158.18,158.1,0.63251106]
[1762439781172,6.69534098,158.15,158.07,0.63263111]
[1762439781388,0.65136999,158.2,158.09,6.69534098]
[1762439781662,0.65136999,158.2,158.07,8.14]
[1762439781663,0.14216157,158.18,158.07,8.14]
[1762439781866,22.1266911,158.18,158.11,6.69534098]
[1762439782064,6.32071297,158.21,158.14,6.69534098]
[1762439782363,0.68,158.2,158.08,7.67843325]
[1762439782565,6.69534098,158.16,158.09,0.68]
[1762439782768,0.68,158.2,158.1,6.69534098]
[1762439782954,6.69534098,158.15,158.09,0.68]
[1762439783150,0.68,158.2,158.11,6.69534098]
[1762439783451,22.12249541,158.21,158.14,6.69534098]
[1762439783644,13.01605395,158.21,158.15,6.69534098]
[1762439784108,6.69534098,158.19,158.1,6.95724163]
[1762439784250,6.69534098,158.16,158.1,7.37534098]
[1762439784449,6.69534098,158.16,158.11,6.69534098]
[1762439784672,6.69534098,158.18,158.13,6.69534098]
[1762439784878,22.12249541,158.21,158.14,6.69534098]
[1762439785058,16.47961541,158.24,158.18,6.69534098]
[1762439785391,6.69534098,158.19,158.14,6.69534098]
[1762439785696,6.69534098,158.2,158.14,6.69534098]
[1762439785862,0.68,158.23,158.07,0.68]
[1762439785863,6.69534098,158.16,158.07,0.68]
[1762439786065,6.32191174,158.18,158.13,6.69534098]
[1762439786389,6.32191174,158.18,158.11,6.69534098]
[1762439786390,7.37534098,158.17,158.11,6.69534098]
[1762439786689,6.69534098,158.15,158.09,7.37534098]
[1762439786900,22.1266911,158.18,158.11,6.69534098]
[1762439787101,6.32191174,158.18,158.13,6.69534098]
[1762439787304,13.01665762,158.2,158.14,6.69534098]
[1762439787587,13.01665762,158.2,158.12,0.68]
[1762439787786,6.32131664,158.2,158.15,6.69534098]
[1762439787990,13.01605395,158.21,158.12,0.68]
[1762439788177,6.32071297,158.21,158.15,6.69534098]
[1762439788373,6.32071297,158.21,158.17,6.69534098]
[1762439788589,13.69566907,158.22,158.16,6.69534098]
[1762439788791,0.68,158.28,158.16,8.12]
[1762439788988,6.31711939,158.3,158.23,6.69534098]
[1762439789288,6.31711939,158.3,158.19,8.12]
[1762439789289,6.69534098,158.24,158.19,8.12]
[1762439789494,6.69534098,158.24,158.16,17.90882769]
[1762439789673,1.33136999,158.29,158.18,0.68]
[1762439789674,6.69534098,158.25,158.18,0.68]
[1762439789866,6.69534098,158.25,158.2,6.69534098]
[1762439790204,6.69534098,158.23,158.18,6.69534098]
[1762439790571,6.69534098,158.23,158.18,7.37534098]
[1762439790771,6.31951466,158.24,158.19,6.69534098]
[1762439790989,13.01485564,158.24,158.19,6.69534098]
[1762439791291,0.68,158.23,158.14,0.68]
[1762439791488,28.81364229,158.24,158.15,8.12]
[1762439791677,6.69534098,158.23,158.18,6.69534098]
[1762439791874,28.81364229,158.24,158.18,6.69534098]
[1762439792281,28.81364229,158.24,158.19,6.69534098]
[1762439792491,6.69534098,158.23,158.18,6.69534098]
[1762439792673,22.11830131,158.24,158.17,0.68]
[1762439792991,6.69534098,158.23,158.18,6.69534098]
[1762439793198,22.79830131,158.24,158.17,6.69534098]
[1762439793513,6.99951466,158.24,158.16,0.68]
[1762439793673,6.31951466,158.24,158.16,0.68]
[1762439793867,1.99999999,158.37,158.23,6.69534098]
[1762439794067,13.01246037,158.3,158.22,6.94]
[1762439794296,13.01246037,158.3,158.18,20.592]
[1762439794297,6.69534098,158.26,158.18,21.272]
[1762439794465,6.69534098,158.28,158.22,6.69534098]
[1762439794896,6.69534098,158.28,158.21,0.68]
[1762439795192,13.01211598,158.31,158.25,6.69534098]
[1762439795404,59.01176463,158.41,158.29,6.69534098]
[1762439795405,1.33136999,158.4,158.29,6.69534098]
[1762439795573,1.33136999,158.4,158.3,6.69534098]
[1762439795778,6.69534098,158.36,158.3,6.69534098]
[1762439795992,6.69534098,158.36,158.27,8.1]
[1762439795993,6.31592244,158.33,158.29,6.69534098]
[1762439796196,6.31592244,158.33,158.3,6.69534098]
[1762439796370,6.31545118,158.35,158.31,6.69534098]
[1762439796570,0.68,158.39,158.34,6.69534098]
[1762439796770,13.00893535,158.39,158.34,6.69534098]
[1762439796994,6.69534098,158.37,158.3,0.69]
[1762439797189,6.69534098,158.38,158.33,6.69534098]
[1762439797382,22.7674191,158.39,158.3,0.69]
[1762439797573,22.7674191,158.39,158.32,6.69534098]
[1762439797781,6.31359437,158.39,158.34,6.69534098]
[1762439797978,6.69534098,158.38,158.32,6.69534098]
[1762439798187,6.69534098,158.38,158.27,0.69]
[1762439798188,0.67,158.37,158.27,0.69]
[1762439798391,6.69534098,158.33,158.27,0.69]
[1762439798598,0.67,158.37,158.3,6.69534098]
[1762439798774,6.31313131,158.4,158.31,1.32167203]
[1762439798993,6.51282148,158.41,158.37,6.69534098]
[1762439799500,6.51282148,158.41,158.36,6.69534098]
[1762439799807,6.51282148,158.41,158.34,6.69534098]
[1762439799808,6.69534098,158.39,158.34,6.69534098]
[1762439800007,6.31392852,158.38,158.34,6.69534098]
[1762439800299,28.7927767,158.39,158.34,6.69534098]
[1762439800506,6.31361099,158.39,158.35,4.84574689]
[1762439800672,11.15894901,158.4,158.35,4.84574689]
[1762439800873,22.7660304,158.4,158.35,4.84574689]
[1762439801073,27.61177729,158.4,158.35,4.84574689]
[1762439801380,6.31320212,158.4,158.36,4.84574689]
[1762439802068,4.84574689,158.39,158.34,4.84574689]
[1762439802273,5.51574689,158.39,158.34,4.84574689]
[1762439802582,22.0960304,158.4,158.28,0.69]
[1762439802583,4.84574689,158.35,158.28,0.69]
[1762439802893,4.84574689,158.35,158.29,4.84574689]
[1762439803090,4.84574689,158.35,158.22,0.63203134]
[1762439803091,4.84574689,158.32,158.27,4.84574689]
[1762439803272,4.84574689,158.35,158.3,4.84574689]
[1762439803473,20.592,158.37,158.29,4.84574689]
[1762439803698,4.84574689,158.35,158.26,10.47882769]
[1762439803911,4.84574689,158.34,158.27,0.69]
[1762439804127,6.31632137,158.32,158.28,4.84574689]
[1762439804304,6.31632137,158.32,158.27,5.53574689]
[1762439804607,11.16174744,158.33,158.28,4.84574689]
[1762439804987,6.31600055,158.33,158.28,4.84574689]
[1762439805192,6.98600055,158.33,158.27,4.84574689]
[1762439805390,4.84574689,158.29,158.23,0.69]
[1762439805583,4.84574689,158.26,158.21,4.84574689]
[1762439805779,25.43774689,158.3,158.19,4.84574689]
[1762439805973,4.84574689,158.2,158.11,0.63247106]
[1762439806205,20.592,158.26,158.11,0.69]
[1762439806206,6.32031348,158.22,158.11,0.69]
[1762439806412,6.32031348,158.22,158.12,21.22443106]
[1762439806710,0.67,158.29,158.21,6.66867969]
[1762439806885,0.67,158.29,158.11,39.94820458]
[1762439806886,6.66867969,158.26,158.19,0.69]
[1762439807074,6.66867969,158.24,158.18,6.66867969]
[1762439807274,6.66867969,158.26,158.17,0.69]
[1762439807470,0.67,158.27,158.2,6.66867969]
[1762439807701,6.66867969,158.24,158.18,6.66867969]
[1762439807906,0.67,158.27,158.21,6.66867969]
[1762439808093,6.66867969,158.26,158.21,6.66867969]
[1762439808486,6.66867969,158.26,158.2,6.66867969]
[1762439808686,6.66867969,158.26,158.18,0.69]
[1762439808687,6.66867969,158.25,158.18,0.69]
[1762439808907,7.33867969,158.26,158.2,6.66867969]
[1762439809207,6.66867969,158.24,158.18,7.35867969]
[1762439809398,0.67,158.25,158.18,0.69]
[1762439809611,6.66867969,158.24,158.18,0.69]
[1762439809808,6.66867969,158.21,158.14,8.06]
[1762439809997,0.67,158.25,158.16,6.66867969]
[1762439809998,6.66867969,158.22,158.16,6.66867969]
[1762439810198,0.67,158.25,158.18,6.66867969]
[1762439810380,0.67,158.25,158.19,6.66867969]
[1762439810578,0.67,158.25,158.15,9.78882769]
[1762439810579,6.66867969,158.22,158.11,0.63247106]
[1762439810806,6.66867969,158.18,158.12,9.78882769]
[1762439811005,0.67,158.24,158.16,6.66867969]
[1762439811210,0.67,158.24,158.18,6.66867969]
[1762439811211,7.33867969,158.24,158.18,6.66867969]
[1762439811394,6.3194514,158.25,158.19,6.66867969]
[1762439811395,12.98813109,158.25,158.19,6.66867969]
[1762439811616,12.98813109,158.25,158.18,6.66867969]
[1762439811900,0.67,158.27,158.21,6.66867969]
[1762439811901,6.31832389,158.27,158.21,6.66867969]
[1762439812099,12.98700358,158.27,158.21,6.66867969]
[1762439812296,20.592,158.29,158.23,6.66867969]
[1762439812297,6.66867969,158.29,158.23,6.66867969]
[1762439812496,6.66867969,158.28,158.22,0.71]
[1762439812693,6.66867969,158.26,158.2,12.9897922]
[1762439812908,7.34867969,158.28,158.21,6.66867969]
[1762439813206,6.66867969,158.26,158.2,7.37867969]
[1762439813617,6.66867969,158.25,158.19,6.66867969]
[1762439813918,6.66867969,158.23,158.17,13.70092661]
[1762439814087,21.272,158.26,158.19,6.66867969]
[1762439814292,6.31911532,158.25,158.2,6.66867969]
[1762439814496,22.11690362,158.25,158.19,6.66867969]
[1762439814707,28.78558331,158.25,158.19,6.66867969]
[1762439814913,6.31881525,158.26,158.2,6.66867969]
[1762439815114,22.76697533,158.26,158.16,6.66867969]
[1762439815299,6.66867969,158.21,158.15,15.41867969]
[1762439815488,0.68,158.25,158.13,30.38082769]
[1762439815489,6.66867969,158.19,158.13,6.66867969]
[1762439815689,6.66867969,158.19,158.13,15.41867969]
[1762439815908,6.66867969,158.19,158.13,7.37867969]
[1762439816109,6.66867969,158.19,158.12,6.32425737]
[1762439816110,6.66867969,158.14,158.08,0.71]
[1762439816409,6.66867969,158.14,158.08,7.37867969]
[1762439816614,28.79745456,158.17,158.1,6.66867969]
[1762439816813,28.79745456,158.17,158.11,6.66867969]
[1762439816814,12.99099112,158.17,158.11,6.66867969]
[1762439817017,6.32152851,158.19,158.12,6.66867969]
[1762439817323,6.32111251,158.2,158.14,6.66867969]
[1762439817494,6.66867969,158.17,158.09,21.302]
[1762439817689,6.66867969,158.17,158.11,6.66867969]
[1762439817989,22.80389379,158.2,158.13,6.66867969]
[1762439818190,6.66867969,158.19,158.13,6.66867969]
[1762439819196,22.80389379,158.2,158.13,6.66867969]
[1762439819397,28.79257348,158.2,158.14,6.66867969]
[1762439819613,12.9897922,158.2,158.14,6.66867969]
[1762439819815,6.32111251,158.2,158.14,7.37867969]
[1762439820024,6.32074426,158.21,158.15,6.66867969]
[1762439820204,6.66867969,158.2,158.14,0.71]
[1762439820407,6.66867969,158.17,158.11,8.73]
[1762439820594,6.66867969,158.13,158.06,0.71]
[1762439820797,22.12529236,158.19,158.1,6.66867969]
[1762439821022,0.68,158.23,158.14,6.66867969]
[1762439821241,12.98907491,158.22,158.15,6.66867969]
[1762439821497,0.68,158.23,158.15,6.66867969]
[1762439821498,13.66861938,158.23,158.17,6.66867969]
[1762439821716,0.65136999,158.32,158.21,6.66867969]
[1762439821905,0.68,158.31,158.23,6.66867969]
[1762439822118,0.68,158.31,158.24,6.66867969]
[1762439822119,7.34867969,158.31,158.24,6.66867969]
[1762439822318,7.34867969,158.31,158.22,0.71]
[1762439822319,6.31791761,158.28,158.22,8.04]
[1762439822516,14.27902758,158.28,158.22,8.04]
[1762439822834,30.07382161,158.28,158.22,16.00110997]
[1762439823002,7.96110997,158.29,158.23,7.96110997]
[1762439823326,7.96110997,158.28,158.22,8.75]
[1762439823529,0.65136999,158.33,158.27,7.96110997]
[1762439823827,7.96110997,158.33,158.27,7.96110997]
[1762439824135,6.31512723,158.35,158.3,7.96110997]
[1762439824328,6.3143272,158.37,158.32,7.96110997]
[1762439824530,0.68,158.42,158.34,7.96110997]
[1762439824727,7.96110997,158.4,158.34,7.96110997]
[1762439824927,7.96110997,158.38,158.32,7.96110997]
[1762439825311,7.19280029,158.41,158.33,7.96110997]
[1762439825514,7.96110997,158.39,158.33,7.96110997]
[1762439825720,7.96110997,158.39,158.33,15.98110997]
[1762439826232,0.68,158.4,158.34,7.96110997]
[1762439826430,0.2,158.41,158.38,7.96110997]
[1762439826742,0.2,158.41,158.36,7.96110997]
[1762439826907,0.2,158.41,158.38,7.96110997]
[1762439827308,7.96110997,158.39,158.31,0.71]
[1762439827509,7.96110997,158.38,158.34,8.02]
[1762439827806,7.96110997,158.37,158.31,8.67110997]
[1762439828034,7.96110997,158.36,158.31,8.73]
[1762439828225,8.64110997,158.4,158.34,7.96110997]
[1762439828538,0.2,158.41,158.35,6.8527105]
[1762439828743,0.2,158.41,158.36,6.8527105]
[1762439829035,0.2,158.41,158.39,6.8527105]
[1762439829244,0.2,158.41,158.4,6.8527105]
[1762439829433,0.2,158.41,158.4,7.5627105]
[1762439829822,0.2,158.41,158.36,8.0]
[1762439830124,0.2,158.41,158.39,6.8527105]
[1762439830328,0.2,158.41,158.4,6.8527105]
[1762439830637,0.85136999,158.5,158.38,20.592]
[1762439830638,0.2,158.5,158.38,20.592]
[1762439830809,0.2,158.5,158.46,20.592]
[1762439831128,0.2,158.5,158.47,10.41986195]
[1762439831332,0.2,158.5,158.49,16.64153819]
[1762439831528,0.2,158.5,158.49,9.78882769]
[1762439831710,0.2,158.5,158.49,17.98249282]
[1762439832230,0.2,158.5,158.49,8.19366513]
[1762439832615,0.2,158.5,158.49,1.34095463]
[1762439833135,0.2,158.5,158.49,7.48366513]
[1762439833323,0.2,158.5,158.49,6.8527105]
[1762439833519,0.2,158.5,158.49,25.37153819]
[1762439833830,0.2,158.5,158.49,25.51369976]
[1762439834039,0.2,158.55,158.5,0.14216157]
[1762439834208,0.2,158.55,158.49,1.34095463]
[1762439834411,13.3600981,158.55,158.47,9.78882769]
[1762439834634,13.3600981,158.55,158.46,20.592]
[1762439834635,0.68,158.54,158.49,6.8527105]
[1762439834835,6.8527105,158.52,158.45,3.29156739]
[1762439835017,6.8527105,158.49,158.45,3.29156739]
[1762439835221,6.8527105,158.48,158.45,3.29156739]
[1762439835626,6.8527105,158.46,158.45,3.29156739]
[1762439835825,6.8527105,158.46,158.39,6.8527105]
[1762439835826,6.8527105,158.46,158.36,0.71]
[1762439836114,20.73416157,158.48,158.34,0.71]
[1762439836115,6.8527105,158.41,158.34,0.71]
[1762439836328,6.8527105,158.38,158.34,8.0]
[1762439836722,6.8527105,158.39,158.34,8.0]
[1762439836937,0.68,158.4,158.31,0.71]
[1762439837131,0.68,158.39,158.29,14.8527105]
[1762439837328,0.14216157,158.38,158.31,6.8527105]
[1762439837526,0.14216157,158.38,158.29,8.0]
[1762439837812,6.8527105,158.34,158.29,8.0]
[1762439838040,1.33136999,158.37,158.27,6.8527105]
[1762439838336,6.8527105,158.34,158.28,6.8527105]
[1762439838517,6.31592244,158.33,158.28,6.8527105]
[1762439838719,13.16863294,158.33,158.27,6.8527105]
[1762439838934,6.31592244,158.33,158.27,6.8527105]
[1762439839238,6.8527105,158.36,158.3,6.8527105]
[1762439839442,6.8527105,158.36,158.31,6.8527105]
[1762439839617,0.14216157,158.37,158.31,6.8527105]
[1762439839946,7.5327105,158.35,158.29,6.8527105]
[1762439840534,13.16823405,158.34,158.28,6.8527105]
[1762439840849,6.8527105,158.33,158.26,29.282]
[1762439841016,6.8527105,158.33,158.26,8.69]
[1762439841215,1.33136999,158.32,158.22,0.71]
[1762439841519,6.8527105,158.26,158.21,6.8527105]
[1762439842131,0.68,158.29,158.23,6.8527105]
[1762439842334,6.8527105,158.31,158.25,6.8527105]
[1762439842520,13.16982989,158.3,158.24,6.8527105]
[1762439842728,0.68,158.31,158.26,6.8527105]
[1762439842928,27.72973914,158.34,158.25,7.98]
[1762439843138,6.8527105,158.31,158.25,7.98]
[1762439843324,6.8527105,158.28,158.22,14.8327105]
[1762439843640,0.68,158.3,158.24,6.8527105]
[1762439843844,6.8527105,158.29,158.23,6.8527105]
[1762439844355,27.4447105,158.31,158.23,0.67]
[1762439844519,6.99667741,158.32,158.26,6.8527105]
[1762439844845,6.8527105,158.29,158.23,6.8527105]
[1762439845033,6.8527105,158.28,158.23,6.8527105]
[1762439845439,0.82216157,158.31,158.23,6.8527105]
[1762439845647,6.8527105,158.28,158.22,7.98]
[1762439845955,6.8527105,158.28,158.22,14.8327105]
[1762439846325,1.47353156,158.31,158.23,6.8527105]
[1762439846528,21.272,158.34,158.27,6.8527105]
[1762439846732,21.272,158.34,158.28,6.8527105]
[1762439846733,34.44024331,158.34,158.28,6.8527105]
[1762439847155,50.2290522,158.34,158.24,0.67]
[1762439847453,6.8527105,158.28,158.23,6.8527105]
[1762439847654,0.14216157,158.32,158.24,6.8527105]
[1762439847960,6.8527105,158.33,158.27,6.8527105]
[1762439848247,6.8527105,158.3,158.24,6.8527105]
[1762439848421,0.68,158.32,158.23,9.78882769]
[1762439848625,6.31595089,158.33,158.23,10.45882769]
[1762439848854,6.8527105,158.32,158.26,6.8527105]
[1762439849191,6.8527105,158.29,158.2,0.67]
[1762439849359,6.8527105,158.27,158.22,6.8527105]
[1762439849533,6.8527105,158.26,158.19,7.96]
[1762439849728,0.68,158.28,158.23,6.8527105]
[1762439849951,0.68,158.28,158.22,6.8527105]
[1762439850152,6.8527105,158.27,158.2,0.67]
[1762439850339,6.8527105,158.27,158.21,6.8527105]
[1762439850539,6.31871603,158.26,158.2,0.67]
[1762439850741,6.8527105,158.26,158.21,6.8527105]
[1762439850956,6.8527105,158.26,158.2,7.5227105]
[1762439851250,6.8527105,158.26,158.17,20.592]
[1762439851251,6.8527105,158.22,158.17,6.8527105]
[1762439851549,0.68,158.25,158.14,7.96]
[1762439851550,6.8527105,158.2,158.14,7.96]
[1762439851725,6.8527105,158.21,158.16,6.8527105]
[1762439851930,6.8527105,158.26,158.16,9.78882769]
[1762439852154,6.8527105,158.22,158.16,0.67]
[1762439852357,6.8527105,158.23,158.18,6.8527105]
[1762439852567,1.33136999,158.31,158.22,6.8527105]
[1762439852764,6.8527105,158.28,158.19,0.67]
[1762439852966,6.8527105,158.29,158.21,7.96]
[1762439853263,6.8527105,158.26,158.2,6.8527105]
[1762439853431,6.8527105,158.26,158.21,6.8527105]